Cogmind - Beta 9.2 @@@ ROGUE MODE // 2019.11.15 @ 22:56:25 Player: Mountainmanden Result: Destroyed by H-55 Commando with Gauss Rifle Performance ------------- Evolutions (2) 1000 Regions Visited (5) 1000 Robots Destroyed (5) 25 Value Destroyed (81) 81 Prototype IDs (3) 60 Alien Tech Used (0) 0 Bonus (300) 300 TOTAL SCORE: 2466 Bonus ------- Aligned with FarCom 300 Cogmind --------- Core Integrity 0/550 Matter 290/300 Energy 300/300 System Corruption 0% Temperature Cool (9) Movement Core (150) Ox2 Location -8/Materials Parts ------- > --- POWER (1) -------- (None) > --- PROPULSION (4) --- (None) > --- UTILITY (4) ------ Medium Battery Advanced Targeting Computer PSU Rigger > --- WEAPON (2) ------- Great Maul > --- INVENTORY (4) ---- Grenade Launcher Improved Datajack Peak State ------------ > --- POWER ------------ Light Ion Engine > --- PROPULSION ------- Light Treads Light Treads > --- UTILITY ---------- Small Storage Unit Medium Battery PSU Rigger > --- WEAPON ----------- Assault Rifle Light Assault Rifle > --- INVENTORY -------- Reinforced Deuterium Engine Reinforced Deuterium Engine Reinforced Deuterium Engine Light Assault Rifle Grenade Launcher [Rating: 16] Favorites ----------- Power Light Ion Engine Engine Light Ion Engine Propulsion Light Treads Treads Light Treads Utility Small Storage Unit Device PSU Rigger Storage Small Storage Unit Processor Advanced Targeting Computer Weapon Assault Rifle Ballistic Gun Assault Rifle Impact Weapon Great Maul Build | -11 -10 -10 -10 -9 -8 ------- Run | Scr Mat Min Exi Min Mat Slots Evolved 4 | . . . . . 4 Power . | . . . . . . Propulsion 2 | . . . . . 2 Utility 2 | . . . . . 2 Weapon . | . . . . . . Parts Attached 13 | 6 . 2 1 . 4 Power 1 | 1 . . . . . Engine 1 | 1 . . . . . Core . | . . . . . . Reactor . | . . . . . . Propulsion 2 | 2 . . . . . Treads 2 | 2 . . . . . Leg . | . . . . . . Wheel . | . . . . . . Hover . | . . . . . . Flight . | . . . . . . Utility 5 | 1 . 1 1 . 2 Device 1 | . . . 1 . . Storage 3 | 1 . 1 . . 1 Processor 1 | . . . . . 1 Hackware . | . . . . . . Protection . | . . . . . . Artifact . | . . . . . . Weapon 5 | 2 . 1 . . 2 Energy Gun . | . . . . . . Energy Cannon . | . . . . . . Ballistic Gun 4 | 2 . 1 . . 1 Ballistic Cannon . | . . . . . . Launcher . | . . . . . . Special Weapon . | . . . . . . Impact Weapon 1 | . . . . . 1 Slashing Weapon . | . . . . . . Piercing Weapon . | . . . . . . Special Melee Weapon . | . . . . . . Unidentified Prototypes 1 | . . . 1 . . Parts Lost 7 | . . . . . 7 Power 1 | . . . . . 1 Propulsion 2 | . . . . . 2 Utility 1 | . . . . . 1 Weapon 3 | . . . . . 3 Highest Loss Streak 5 | . . . . . 5 Average Slot Usage (%) 95 | . 85 88 100 100 66 Engine 13 | . 14 14 14 14 8 Treads 26 | . 28 28 28 28 14 Device 4 | . . . 1 14 9 Storage 22 | . 14 17 26 14 17 Ballistic Gun 26 | . 28 28 28 28 15 Naked Turns . | . . . . . . Heaviest Build 14 | 10 10 12 12 12 14 Greatest Support 40 | 40 40 40 40 40 40 Greatest Overweight (x) 3 | 2 . . . . 3 Average Overweight (x) . | . . . . . . Largest Inventory Capacity 6 | 6 6 6 6 6 6 Average Capacity 5 | 5 6 6 6 6 5 Most Carried 6 | . 1 2 6 6 6 Average Carried 4 | . . 1 5 6 3 Final Capacity 6 | 6 6 6 6 6 4 Final Carried 6 | . 1 2 6 6 2 Class Distribution -------------------- 100% | Mutant Dominant Class ---------------- Mutant | -10/Materials Mutant | -10/Mines Mutant | -10/Exiles Mutant | -9/Mines Mutant | -8/Materials Resources | -11 -10 -10 -10 -9 -8 ----------- Run | Scr Mat Min Exi Min Mat Matter Collected 406 | 242 . 84 20 . 60 Remotely . | . . . . . . Salvage Created 191 | . . 53 . . 138 Parts 8 | . . 4 . . 4 Haulers Intercepted . | . . . . . . Recyclers Shooed 3 | . . 2 . . 1 Parts Field Recycled . | . . . . . . Retrieved Matter . | . . . . . . Parts Self-Destructed . | . . . . . . Prevented . | . . . . . . Kills | -11 -10 -10 -10 -9 -8 ------- Run | Scr Mat Min Exi Min Mat Combat Hostiles Destroyed 4 | . . 3 . . 1 Guns 4 | . . 3 . . 1 Classes Destroyed 3 | . . 1 . . 2 Recycler 1 | . . . . . 1 Swarmer 3 | . . 3 . . . Sentry 1 | . . . . . 1 Best Kill Streak 3 | . . 3 . . 1 Combat Bots Only 3 | . . 3 . . 1 Max Kills in Single Turn 2 | . . 2 . . 1 Gunslinging . | . . . . . . Exploded . | . . . . . . Melee . | . . . . . . Uniques/NPCs Destroyed . | . . . . . . Combat | -11 -10 -10 -10 -9 -8 -------- Run | Scr Mat Min Exi Min Mat Damage Taken 1528 | . 60 241 . . 1227 Core 594 | . 14 22 . . 558 Absorbed by Shields . | . . . . . . Core Remaining (%) 92 | 100 . . . 85 . Volleys Fired 38 | . 2 12 . . 24 Largest 2 | . 2 2 . . 2 Hottest 40 | . 40 40 . . 40 Shots Fired 64 | . 4 24 . . 36 Gun 64 | . 4 24 . . 36 Cannon . | . . . . . . Launcher . | . . . . . . Special . | . . . . . . Kinetic 64 | . 4 24 . . 36 Thermal . | . . . . . . Explosive . | . . . . . . Electromagnetic . | . . . . . . Robot Hit Streak 10 | . 2 3 . . 10 Robot Miss Streak 4 | . 2 4 . . 2 Penetration Max . | . . . . . . Secondary Targets . | . . . . . . Shots Hit Robots 48 | . 2 14 . . 32 Core Hits 13 | . 1 5 . . 7 Critical Hits 1 | . . . . . 1 Critical Kills . | . . . . . . Critical Parts Destroyed 1 | . . . . . 1 Melee Attacks 5 | . . . . . 5 Impact 5 | . . . . . 5 Slashing . | . . . . . . Piercing . | . . . . . . Sneak Attacks . | . . . . . . Combat Hostiles . | . . . . . . Follow-up Attacks . | . . . . . . Damage Inflicted 585 | . 22 125 . . 438 Guns 411 | . 22 125 . . 264 Cannons . | . . . . . . Explosions . | . . . . . . Melee 174 | . . . . . 174 Ramming . | . . . . . . Kinetic 411 | . 22 125 . . 264 Thermal . | . . . . . . Explosive . | . . . . . . Electromagnetic . | . . . . . . Impact 174 | . . . . . 174 Slashing . | . . . . . . Piercing . | . . . . . . Highest Corruption . | . . . . . . Average Corruption . | . . . . . . Corruption Purged . | . . . . . . Overload Shots . | . . . . . . Overflow Damage . | . . . . . . Projectiles . | . . . . . . Explosions . | . . . . . . Melee . | . . . . . . Knockbacks 1 | . . . . . 1 Impact 1 | . . . . . 1 Kinetic . | . . . . . . Secondary . | . . . . . . Self-Inflicted Damage . | . . . . . . Shots . | . . . . . . Rammed . | . . . . . . Targets Rammed . | . . . . . . Kicked . | . . . . . . Crushed . | . . . . . . Highest Temperature 3 | . . . . . 3 Average Temperature 3 | . . . . . 3 Received Heat Transfer 315 | . 36 . . . 279 Siege Activations . | . . . . . . Robots Corrupted . | . . . . . . Combat Hostiles . | . . . . . . Parts Fried . | . . . . . . Impact Corruptions . | . . . . . . Robots Melted . | . . . . . . Combat Hostiles . | . . . . . . Parts Melted . | . . . . . . Heat Transferred . | . . . . . . Parts Sabotaged . | . . . . . . Parts Stolen . | . . . . . . Parts Stripped . | . . . . . . Power Chain Reactions . | . . . . . . Missiles Intercepted . | . . . . . . Alert | -11 -10 -10 -10 -9 -8 ------- Run | Scr Mat Min Exi Min Mat Peak Influence 70 | . . 70 . . 55 Average Influence 8 | . . 39 . . 8 Maximum Alert Level . | . . . . . . Low Security (%) 100 | 100 100 100 . 100 100 Level 1 . | . . . . . . Level 2 . | . . . . . . Level 3 . | . . . . . . Level 4 . | . . . . . . Level 5 . | . . . . . . High Security . | . . . . . . Max Security . | . . . . . . Squads Dispatched 1 | . 1 . . . . Investigation . | . . . . . . Extermination . | . . . . . . Reinforcement 1 | . 1 . . . . Assault . | . . . . . . Garrison . | . . . . . . Intercept . | . . . . . . Construction Impeded . | . . . . . . Haulers Reinforced . | . . . . . . Stealth | -11 -10 -10 -10 -9 -8 --------- Run | Scr Mat Min Exi Min Mat Distress Signals . | . . . . . . Communications Jammed . | . . . . . . Distress Signals . | . . . . . . Times Spotted 16 | . 5 3 . . 8 Peak Tracking Total 6 | . 4 3 . . 6 Tactical Retreats 1 | . . . . . 1 Traps | -11 -10 -10 -10 -9 -8 ------- Run | Scr Mat Min Exi Min Mat Traps Triggered . | . . . . . . Indirectly . | . . . . . . Trap Hack Attempts . | . . . . . . Triggered . | . . . . . . Disarmed . | . . . . . . Reprogrammed . | . . . . . . Reused . | . . . . . . Traps Extracted . | . . . . . . Installed . | . . . . . . Triggered . | . . . . . . Machines | -11 -10 -10 -10 -9 -8 ---------- Run | Scr Mat Min Exi Min Mat Machines Disabled . | . . . . . . Max in Single Turn . | . . . . . . Machines Sabotaged . | . . . . . . Garrisons Compromised . | . . . . . . Overloaded Fab Kills . | . . . . . . Fab Network Shutdowns . | . . . . . . Hacking | -11 -10 -10 -10 -9 -8 --------- Run | Scr Mat Min Exi Min Mat Machines Accessed 4 | . 1 . 2 . 1 Terminals 2 | . 1 . . . 1 Fabricators . | . . . . . . Repair Stations . | . . . . . . Recycling Units . | . . . . . . Scanalyzers . | . . . . . . Garrison Access . | . . . . . . Total Hacks 13 | . 3 . 9 . 1 Successful 10 | . . . 9 . 1 Failed 3 | . 3 . . . . Catastrophic . | . . . . . . Database Lockouts . | . . . . . . Manual 14 | . . . 14 . . Terminals 4 | . 3 . . . 1 Fabricators . | . . . . . . Repair Stations . | . . . . . . Recycling Units . | . . . . . . Scanalyzers . | . . . . . . Garrison Access . | . . . . . . Terminal Hacks 10 | . . . 9 . 1 Record 9 | . . . 9 . . Prototype ID Bank 1 | . . . . . 1 Fabricator Hacks . | . . . . . . Repair Station Hacks . | . . . . . . Recycling Unit Hacks . | . . . . . . Scanalyzer . | . . . . . . Garrison Access Hacks . | . . . . . . Unauthorized Hacks . | . . . . . . Terminals . | . . . . . . Fabricators . | . . . . . . Repair Stations . | . . . . . . Recycling Units . | . . . . . . Scanalyzers . | . . . . . . Garrison Access . | . . . . . . Data Cores Recovered . | . . . . . . Used . | . . . . . . Hacking Detections 1 | . 1 . . . . Full Trace Events . | . . . . . . Feedback Events . | . . . . . . Feedback Blocked . | . . . . . . Robot Schematics Acquired . | . . . . . . Robots Built . | . . . . . . Matter . | . . . . . . Time . | . . . . . . Total Robot Build Rating . | . . . . . . Part Schematics Acquired . | . . . . . . Parts Built . | . . . . . . Matter . | . . . . . . Time . | . . . . . . Total Part Build Rating . | . . . . . . Parts Repaired . | . . . . . . Time . | . . . . . . Parts Recycled . | . . . . . . Recycled Matter . | . . . . . . Retrieved Matter . | . . . . . . Retrieved Components . | . . . . . . Parts Scanalyzed . | . . . . . . Part Schematics Acquired . | . . . . . . Parts Damaged . | . . . . . . Bothacking | -11 -10 -10 -10 -9 -8 ------------ Run | Scr Mat Min Exi Min Mat Used RIF Installer . | . . . . . . Robots Hacked . | . . . . . . Non-combat . | . . . . . . Combat . | . . . . . . Robot Hacks Applied . | . . . . . . Relay Couplers Released . | . . . . . . Robots Rewired . | . . . . . . Allies Hacked . | . . . . . . Hacks Repelled . | . . . . . . Allies | -11 -10 -10 -10 -9 -8 -------- Run | Scr Mat Min Exi Min Mat Total Allies . | . . . . . . Largest Group . | . . . . . . Highest-Rated Group . | . . . . . . Highest-Rated Ally . | . . . . . . Total Orders . | . . . . . . Ally Attacks . | . . . . . . Total Damage . | . . . . . . Kills . | . . . . . . Allies Corrupted . | . . . . . . Allies Melted . | . . . . . . Intel | -11 -10 -10 -10 -9 -8 ------- Run | Scr Mat Min Exi Min Mat Robot Analysis Total . | . . . . . . Derelict Logs Recovered 1 | . . . . 1 . Drone Launches . | . . . . . . Drone Recoveries . | . . . . . . Exploration | -11 -10 -10 -10 -9 -8 ------------- Run | Scr Mat Min Exi Min Mat Turns Passed 3625 | 66 57 216 2226 659 401 Spaces Moved 2184 | 40 32 113 1387 410 202 Core 30 | 16 . . . . 14 Treads 2154 | 24 32 113 1387 410 188 Legs . | . . . . . . Wheels . | . . . . . . Hover . | . . . . . . Flight . | . . . . . . Fastest Speed 50 | 50 160 160 160 160 150 Average Speed 159 | 146 160 160 160 160 160 Slowest Speed 200 | 160 160 160 160 160 200 Overloaded Moves . | . . . . . . Propulsion Burnouts . | . . . . . . Robots Hopped . | . . . . . . Cave-ins Triggered . | . . . . . . Exploration Rate (%) 37 | 3 16 22 93 71 17 Regions Visited 5 Branch Regions 3 Pre-discovered Areas 1 | . . . . 1 . Known Exits Taken 1 | . . . . 1 . Unknown Exits Taken 4 | 1 1 1 1 . . Scrap Searched 2 | . . 1 . 1 . Spaces Dug . | . . . . . . Terrain Destroyed . | . . . . . . Melee . | . . . . . . Projectile . | . . . . . . AOE . | . . . . . . Actions | -11 -10 -10 -10 -9 -8 --------- Run | Scr Mat Min Exi Min Mat Total 2251 | 45 34 126 1394 413 239 Wait 5 | . . . 1 4 . Move 2179 | 39 31 112 1386 409 202 Hop . | . . . . . . Pick Up 7 | . 1 . 5 . 1 Fast Attach 9 | 6 . 1 . . 2 Attach 3 | . . . 1 . 2 Detach . | . . . . . . Swap 1 | . . 1 . . . Drop 4 | . . . 1 . 3 Fire 38 | . 2 12 . . 24 Melee 5 | . . . . . 5 Ram . | . . . . . . Kick . | . . . . . . Crush . | . . . . . . Escape Stasis . | . . . . . . Rewire . | . . . . . . Trap . | . . . . . . Miscellaneous . | . . . . . . Route ------- -11/Scrapyard -10/Materials -10/Mines -10/Exiles -9/Mines (discovered 2 exits: *Mat x2) -8/Materials History --------- Turn | Location | Event 9 | -11/Scrapyard | Discovered new exit (range 16) 67 | -11/Scrapyard | Entered Materials 106 | -10/Materials | Discovered new exit (range 11) 124 | -10/Materials | Entered Mines 315 | -10/Mines | Build established: Mutant 329 | -10/Mines | Deemed a non-threat by the Exiles lab entrance 331 | -10/Mines | Discovered new exit (range 5) 340 | -10/Mines | Entered Exiles 387 | -10/Exiles | Met 8R-AWN 427 | -10/Exiles | Met EX-HEX 500 | -10/Exiles | Met EX-BIN 543 | -10/Exiles | Aligned with FarCom system 545 | -10/Exiles | Given EX-Vault access code 1014 | -10/Exiles | Met EX-DEC 1263 | -10/Exiles | Discovered new exit (range 10) 1632 | -10/Exiles | Visited The Gauntlet 2238 | -10/Exiles | Opened EX-Vault 2257 | -10/Exiles | Found Prototype Device 2298 | -10/Exiles | Warned to stay clear of 0b10 Research branches 2344 | -10/Exiles | Identified PSU Rigger 2566 | -10/Exiles | Left Exiles lab with PSU Rigger 2566 | -10/Exiles | Entered Mines 2790 | -9/Mines | Identified exit to Materials 2820 | -9/Mines | Discovered exit to Materials (range 12) 3218 | -9/Mines | Learned location of Storage (-7) 3225 | -9/Mines | Entered Materials 3225 | -8/Materials | Evolved 4 slots: Propulsion x2, Utility x2 3603 | -8/Materials | Core integrity fell below 50% 3619 | -8/Materials | Lost 5 parts (1p1n3w) 3620 | -8/Materials | Core integrity fell below 20% 3626 | -8/Materials | Destroyed by H-55 Commando with Gauss Rifle Last Messages --------------- Penetrated by Slug. Lgt. Treads destroyed. Acquired Adv. Targeting Computer. Penetrated by Slug. Lgt. Ion Engine destroyed. Penetrated by Slug. U-05 Engineer lays Concrete. Acquired Great Maul. Penetrated by Slug. H-55 Commando knocked back. Penetrated by Slug. C-30 ARC bursts open, deploying its payload. G-50 Soldier unfolds itself. G-47 Trooper unfolds itself. Penetrated by Slug. Sml. Storage Unit destroyed. K-01 Serf collects debris. Penetrated by Slug. K-01 Serf collects debris. Penetrated by Slug. Map ----- +----------------------------------------------------+ | ?????????????????????????????????????????????????? | | ?????????????????????????????????????????????????? | | ?????????????????????????? ??????????????????????? | | ?????????????????????????#+#?????????????????????? | | ????????????????????????? ?????????????????????? | | ????????????????????????? ?????????????????????? | | ????????????????????????? ?????????????????????? | | ????????????????????????? ?????????????????????? | | ????????????????????????? !?????????????????????? | | ?????????????????????????# #?????????????????????? | | ?????????????????????????# #?????????????????????? | | ???????????????#####?????# #?????????????????????? | | ???????????????#]][[!????# #?????????????????????? | | ???????????????#]][[!????# #??????? ???????????? | | ???????????????# ?### ###????? #???????#### | | ???????????##### ## u #????? #???????#!! | | ?????????? #????# #???????#!! | | ?????????? % #????+ +???????#[[ | | ?????????? % #????# #???????#[[ | | ?????????????###+####### #????# #???????#[[ | | ???????????????????????##%kY##????# #???????#[[ | | ????????????????????????# g #?????# #???????#### | | ????????????????????????# #?????# #???? ????? | | ????????????????????????#hgg#?????# #????"""???? | | ???????????????????????## ##???## ##?????""??? | | ???????????????????????# @ ##### #?????? ?? | | ???????????????### ### ######+##+# | | ?????????????# | | ?????????????# ### | | ?????????????# ????# ##### | | ?????????????# ???????############# | | ????????????????????????????#! # /// ####### | | ????????????????????????????# / // #??# | | ????????????????????????????# """# // #??# | | ????????????????????????????#% """# #### | | ????????????????????????????# """# + | | ????????????????????????????# ###"T"###### | | ????????????????????????????########?#"""#????# | | ?????????????????????????????????????#####????# | | ??????????????????????????????????????????????#### | | | | | | | | | | | | | | | | | | | | | +----------------------------------------------------+ Best States ------------- Heat Dissipation 31 Energy Generation 10 Energy Capacity 325 Matter Stores 300 Matter Capacity 300 Sight Range 16 Terrain Scan Density 10 Evasion (%) 40 Targeting Accuracy 8 Recoil Reduction 2 Item Schematics ----------------- None Robot Schematics ------------------ None Fabricated ------------ Nothing Alien Tech Used ----------------- None Achievements -------------- None Challenges ------------ None Game ------ Seed NetworkAbsorptionLeg Manual? 0 Play Time 00:42:05 Cumulative 10.2 hours Start 2019.11.15 @ 21:07:59 End 2019.11.15 @ 22:56:25 Sessions 1 Manual Loads 0 Difficulty Rogue Special Mode None Game No. 11 Rogue 9 Adventurer 2 Explorer 0 Win Type - Total 0 Types 0/0/0/0/0/0/0 Lore% 7 Gallery% 12 Achievement% 9 Wizard Run 0 Options --------- ASCII 0 Keyboard 1 Movement Numpad Keybinds 0 Fullscreen 1 Font 18/SmallcapsGlow Map View 76x50 Tactical HUD 0 Map Filters NONE Filters NONE Steam 1 RUN: ff412658-4b23-439d-88f4-95133739dea6